bitfinex/quotes_BTCUSD_20250118
["timestamp","ask_amount","ask_price","bid_price","bid_amount"]
[1737235395383,0.8824313,104190.0,104180.0,0.22960948]
[1737235395586,0.98167211,104190.0,104180.0,0.22960948]
[1737235395730,0.98167211,104190.0,104180.0,0.0150439]
[1737235397215,0.8824313,104190.0,104180.0,0.0150439]
[1737235403002,0.90177331,104190.0,104180.0,0.0150439]
[1737235403401,1.12427331,104190.0,104180.0,0.0150439]
[1737235404084,1.02427331,104190.0,104180.0,0.0150439]
[1737235404748,0.470287,104180.0,104170.0,0.0004276]
[1737235404904,0.88168314,104180.0,104170.0,0.0004276]
[1737235405117,1.20418314,104180.0,104170.0,0.0004276]
[1737235405338,1.10418314,104180.0,104170.0,0.0004276]
[1737235410386,1.11214157,104180.0,104170.0,0.0004276]
[1737235410815,0.78964157,104180.0,104170.0,0.0004276]
[1737235412267,0.5839435,104180.0,104170.0,0.0004276]
[1737235417989,0.32748624,104180.0,104170.0,0.0004276]
[1737235418176,0.5395835,104180.0,104170.0,0.0004276]
[1737235418553,0.6895835,104180.0,104170.0,0.0004276]
[1737235418755,0.5895835,104180.0,104170.0,0.0004276]
[1737235418980,0.78882431,104180.0,104170.0,0.0004276]
[1737235419917,0.7897229,104180.0,104170.0,0.0004276]
[1737235423270,0.7897229,104180.0,104170.0,0.21464829]
[1737235424887,0.69048209,104180.0,104170.0,0.21464829]
[1737235426712,0.69048209,104180.0,104170.0,0.0004276]
[1737235433333,0.69048209,104180.0,104170.0,0.01242852]
[1737235433536,0.72359495,104180.0,104170.0,0.01242852]
[1737235434324,0.71795495,104180.0,104170.0,0.01242852]
[1737235434531,0.72351495,104180.0,104170.0,0.01242852]
[1737235434768,0.82275576,104180.0,104170.0,0.01242852]
[1737235436027,0.89254082,104180.0,104170.0,0.01242852]
[1737235437590,0.91554082,104180.0,104170.0,0.01242852]
[1737235437805,0.91554082,104180.0,104150.0,0.47171322]
[1737235437806,0.571306,104160.0,104150.0,0.47171322]
[1737235438015,0.74033187,104160.0,104150.0,0.0004277]
[1737235438419,0.81011693,104160.0,104150.0,0.0004277]
[1737235438759,0.90935774,104160.0,104150.0,0.0004277]
[1737235439342,0.98257072,104160.0,104150.0,0.0004277]
[1737235439553,0.88332991,104160.0,104150.0,0.0004277]
[1737235441403,0.88332991,104160.0,104150.0,0.01125344]
[1737235441621,0.88332991,104160.0,104150.0,0.0004277]
[1737235441798,0.88332991,104160.0,104150.0,0.01125344]
[1737235442000,0.88332991,104160.0,104150.0,0.0004277]
[1737235442257,0.98257072,104160.0,104150.0,0.0004277]
[1737235442431,1.00134259,104160.0,104150.0,0.0004277]
[1737235443571,1.32384259,104160.0,104150.0,0.0004277]
[1737235443718,1.22460178,104160.0,104150.0,0.0004277]
[1737235444355,1.23308202,104160.0,104150.0,0.0004277]
[1737235446049,1.23308202,104160.0,104150.0,0.01125344]
[1737235446254,1.23308202,104160.0,104150.0,0.0004277]
[1737235447747,1.23308202,104160.0,104150.0,0.01125344]
[1737235448219,1.23308202,104160.0,104150.0,0.22547413]
[1737235448622,1.13308202,104160.0,104150.0,0.22547413]
[1737235449016,0.87699047,104160.0,104150.0,0.22547413]
[1737235449218,0.80695047,104160.0,104150.0,0.22547413]
[1737235450740,1.00063128,104160.0,104150.0,0.22547413]
[1737235450942,0.43254624,104160.0,104150.0,0.22547413]
[1737235451167,0.43254624,104160.0,104150.0,0.26831827]
[1737235451374,0.43254624,104160.0,104150.0,0.34911827]
[1737235451577,0.58254624,104160.0,104150.0,0.34911827]
[1737235455486,0.36643779,104160.0,104150.0,0.34911827]
[1737235455700,0.36643779,104160.0,104150.0,0.26831827]
[1737235457756,0.4656786,104160.0,104150.0,0.26831827]
[1737235457978,0.36643779,104160.0,104150.0,0.26831827]
[1737235458325,0.26004624,104160.0,104150.0,0.26831827]
[1737235459180,0.25448624,104160.0,104150.0,0.26831827]
[1737235459377,0.26004624,104160.0,104150.0,0.26831827]
[1737235462357,0.26004624,104160.0,104150.0,0.27132224]
[1737235469863,0.36637993,104160.0,104150.0,0.27132224]
[1737235470075,0.26004624,104160.0,104150.0,0.27132224]
[1737235470278,0.44857993,104160.0,104150.0,0.27132224]
[1737235470684,0.65415443,104160.0,104150.0,0.26831827]
[1737235470893,0.75415443,104160.0,104150.0,0.26831827]
[1737235471087,0.80115443,104160.0,104150.0,0.26831827]
[1737235471293,0.80115443,104160.0,104150.0,0.22663555]
[1737235471481,1.00039524,104160.0,104150.0,0.22663555]
[1737235472025,1.00039524,104160.0,104150.0,0.01125344]
[1737235473105,0.80115443,104160.0,104150.0,0.01125344]
[1737235473312,1.01732074,104160.0,104150.0,0.01125344]
[1737235474299,0.81807993,104160.0,104150.0,0.01125344]
[1737235474669,0.81807993,104160.0,104150.0,0.22663555]
[1737235475691,0.77107993,104160.0,104150.0,0.22663555]
[1737235475876,0.68887993,104160.0,104150.0,0.22663555]
[1737235477246,0.68887993,104160.0,104150.0,0.48370038]
[1737235477744,0.68887993,104160.0,104150.0,0.26831827]
[1737235479450,0.36637993,104160.0,104150.0,0.26831827]
[1737235479880,0.26004624,104160.0,104150.0,0.26831827]
[1737235480702,0.26004624,104160.0,104150.0,0.36433327]
[1737235480838,0.26004624,104160.0,104150.0,0.74390557]
[1737235481044,0.26004624,104160.0,104150.0,0.48684074]
[1737235481583,0.36637993,104160.0,104150.0,0.39382968]
[1737235482504,0.26004624,104160.0,104150.0,0.39382968]
[1737235482689,0.25448624,104160.0,104150.0,0.48984468]
[1737235482837,0.25448624,104160.0,104150.0,0.39382968]
[1737235483040,0.26004624,104160.0,104150.0,0.39382968]
[1737235484528,0.251566,104160.0,104150.0,0.48984468]
[1737235485174,0.101566,104160.0,104150.0,0.48984468]
[1737235485976,0.096006,104160.0,104150.0,0.48984468]
[1737235486124,0.101566,104160.0,104150.0,0.48984468]
[1737235486765,0.48941893,104170.0,104150.0,0.78110349]
[1737235486980,0.00556,104160.0,104150.0,0.68508749]
[1737235487237,0.101566,104160.0,104150.0,0.40152219]
[1737235487650,0.00556,104160.0,104150.0,0.78786224]
[1737235491097,0.03889333,104160.0,104150.0,0.78786224]
[1737235492932,0.03333333,104160.0,104150.0,0.78786224]
[1737235493156,0.03889333,104160.0,104150.0,0.78786224]
[1737235493366,0.03889333,104160.0,104150.0,0.40632796]
[1737235494696,0.03333333,104160.0,104150.0,0.40632796]
[1737235495251,0.03889333,104160.0,104150.0,0.40632796]
[1737235499593,0.03333333,104160.0,104150.0,0.47610079]
[1737235499760,0.03889333,104160.0,104150.0,0.47610079]
[1737235500361,0.03889333,104160.0,104150.0,0.49910079]
[1737235500509,0.03333333,104160.0,104150.0,0.49910079]
[1737235500722,0.03889333,104160.0,104150.0,0.49910079]
[1737235508425,0.03889333,104160.0,104150.0,0.42932796]
[1737235509895,0.03889333,104160.0,104150.0,0.40632796]
[1737235510149,0.21499933,104160.0,104150.0,0.40632796]
[1737235510320,0.33157216,104160.0,104150.0,0.11830396]
[1737235510525,0.33157216,104160.0,104150.0,0.4995327]
[1737235510755,0.26179933,104160.0,104150.0,0.5955477]
[1737235512842,0.26179933,104160.0,104150.0,0.4995327]
[1737235513157,0.26179933,104160.0,104150.0,0.65849061]
[1737235513158,0.48157216,104160.0,104150.0,0.65849061]
[1737235513519,0.48157216,104160.0,104150.0,0.27726187]
[1737235514375,0.48157216,104160.0,104150.0,0.2724561]
[1737235516647,0.47601216,104160.0,104150.0,0.2724561]
[1737235516826,0.48157216,104160.0,104150.0,0.2724561]
[1737235518228,0.49020451,104160.0,104150.0,0.2724561]
[1737235519892,0.49020451,104160.0,104150.0,0.26945216]
[1737235528365,0.49020451,104160.0,104150.0,0.23537963]
[1737235528562,0.37936726,104150.0,104140.0,0.27129504]
[1737235528809,0.222933,104130.0,104120.0,0.00181667]
[1737235529011,1.00431151,104130.0,104120.0,0.00181667]
[1737235529259,0.87108364,104130.0,104120.0,0.00480703]
[1737235529440,1.00315947,104130.0,104120.0,0.00480703]
[1737235529601,1.10240028,104130.0,104120.0,0.00480703]
[1737235529817,1.17217311,104130.0,104120.0,0.00530892]
[1737235530543,1.17217311,104130.0,104120.0,0.00050189]
[1737235531300,1.17581788,104130.0,104120.0,0.00050189]
[1737235532043,1.17581788,104130.0,104120.0,0.01166007]
[1737235533536,0.97581788,104130.0,104120.0,7e-08]
[1737235533737,1.12873959,104130.0,104120.0,4.9e-07]
[1737235533951,0.793252,104110.0,104100.0,0.00049525]
[1737235534169,1.19821525,104110.0,104100.0,0.00059163]
[1737235534370,1.19821525,104110.0,104100.0,0.00852483]
[1737235534570,1.30469688,104110.0,104100.0,0.00059163]
[1737235534752,1.30469688,104110.0,104100.0,0.00852483]
[1737235534929,1.30469688,104110.0,104100.0,0.00059163]
[1737235535132,1.30469688,104110.0,104100.0,0.00443303]
[1737235535388,1.30469688,104110.0,104100.0,0.00059163]
[1737235535577,1.30469688,104110.0,104100.0,0.00443303]
[1737235535748,1.30469688,104110.0,104100.0,0.00468343]
[1737235536923,0.83511859,104110.0,104100.0,4.3e-07]
[1737235537037,0.09607,104090.0,104080.0,0.00129817]
[1737235537241,1.00918945,104090.0,104080.0,0.00139432]
[1737235537442,1.00798831,104090.0,104080.0,0.00373296]
[1737235537684,1.10722912,104090.0,104080.0,0.00373296]
[1737235538899,1.10722912,104090.0,104080.0,9.6e-07]
[1737235539137,1.10722912,104090.0,104080.0,2.2e-07]
[1737235539138,0.73765083,104090.0,104080.0,2.2e-07]
[1737235539362,0.78396993,104090.0,104080.0,7.2e-07]
[1737235539850,0.78396993,104090.0,104070.0,0.00089817]
[1737235539851,0.25,104080.0,104070.0,0.00089817]
[1737235540059,0.78298307,104080.0,104070.0,0.00162486]
[1737235540260,0.68298307,104080.0,104070.0,9.4e-07]
[1737235540475,0.470789,104070.0,104060.0,0.00089859]
[1737235540682,0.78299307,104070.0,104060.0,0.00140066]
[1737235540975,0.78299307,104070.0,104060.0,6.6e-07]
[1737235540976,0.77845803,104070.0,104060.0,6.6e-07]
[1737235541205,0.77845803,104070.0,104060.0,0.00517299]
[1737235541356,0.77845803,104070.0,104060.0,6.6e-07]
[1737235541883,0.77845803,104070.0,104060.0,9.9e-07]
[1737235542109,0.2256,104050.0,104040.0,0.0008279]
[1737235542300,0.73947107,104050.0,104040.0,0.0008279]
[1737235542863,0.73947107,104050.0,104040.0,0.00103709]
[1737235543099,0.78857107,104050.0,104040.0,0.00103709]
[1737235544919,0.20814863,104050.0,104040.0,0.00103709]
[1737235545124,0.20935013,104050.0,104040.0,0.00103709]
[1737235545330,0.35935013,104050.0,104040.0,0.00103709]
[1737235545513,0.46463026,104050.0,104040.0,0.21971527]
[1737235546851,0.46463026,104050.0,104040.0,0.00885665]
[1737235547050,0.35814863,104050.0,104040.0,0.00885665]
[1737235547376,0.46463026,104050.0,104040.0,0.22452729]
[1737235547756,0.46463026,104050.0,104040.0,0.00885665]
[1737235548177,0.35814863,104050.0,104040.0,0.00885665]
[1737235548507,0.35814863,104050.0,104040.0,0.22452729]
[1737235549483,0.35814863,104050.0,104040.0,0.22903104]
[1737235550664,0.36720396,104050.0,104040.0,0.23504606]
[1737235554364,0.36164396,104050.0,104040.0,0.23504606]
[1737235554570,0.36720396,104050.0,104040.0,0.23504606]
[1737235556579,0.36720396,104050.0,104040.0,0.2771444]
[1737235557299,0.00905533,104050.0,104040.0,0.47250121]
[1737235557522,0.00556,104050.0,104040.0,0.74323321]
[1737235557935,0.00556,104050.0,104040.0,0.86618179]
[1737235558232,0.00556,104050.0,104040.0,0.48546423]
[1737235558671,0.00556,104050.0,104040.0,0.48596968]
[1737235559298,0.42807014,104070.0,104050.0,0.288313]
[1737235559485,0.00556,104060.0,104050.0,0.38755381]
[1737235559834,0.00556,104060.0,104050.0,0.39184513]
[1737235561371,0.00050142,104070.0,104060.0,0.096098]
[1737235561585,0.00606142,104070.0,104060.0,0.27602521]
[1737235561776,0.00606142,104070.0,104060.0,0.27977167]
[1737235562976,0.00606142,104070.0,104060.0,0.28759123]
[1737235565754,0.00606142,104070.0,104060.0,0.28936582]
[1737235568574,0.00606142,104070.0,104060.0,0.27977167]
[1737235568775,0.00050142,104070.0,104060.0,0.30277167]
[1737235568981,0.00606142,104070.0,104060.0,0.31236182]
[1737235569175,0.00606142,104070.0,104060.0,0.60155976]
[1737235570089,0.00695981,104070.0,104060.0,0.60155976]
[1737235572489,0.00695981,104070.0,104060.0,0.90804139]
[1737235572490,0.00139981,104070.0,104060.0,0.90804139]
[1737235573003,0.00139981,104070.0,104060.0,1.11315338]
[1737235573347,0.00139981,104070.0,104060.0,1.71025338]
[1737235574519,0.00556,104080.0,104070.0,0.119089]
[1737235574715,0.00556,104080.0,104070.0,0.40619393]
[1737235574919,0.00556,104080.0,104070.0,0.87493911]
[1737235575986,0.00556,104080.0,104070.0,0.41826972]
[1737235578628,0.00556,104080.0,104070.0,0.70767295]
[1737235579996,0.00556,104080.0,104070.0,0.90767295]
[1737235580175,0.225652,104110.0,104100.0,0.096061]
[1737235580474,0.13516,104110.0,104100.0,0.096061]
[1737235580673,0.08786,104110.0,104100.0,0.20134136]
[1737235580946,0.08786,104110.0,104100.0,0.45847123]
[1737235581147,0.13979816,104120.0,104100.0,0.36241023]
[1737235581352,0.0823,104120.0,104110.0,0.19529281]
[1737235581532,0.08786,104120.0,104110.0,0.4094918]
[1737235581701,0.00556,104120.0,104110.0,0.4094918]
[1737235581909,0.00556,104120.0,104110.0,0.45823334]
[1737235582274,0.00556,104120.0,104110.0,0.83790166]
[1737235583009,0.00556,104120.0,104110.0,0.45823334]
[1737235583189,0.00089817,104120.0,104110.0,0.45823334]
[1737235583394,0.00645817,104120.0,104110.0,0.65033134]
[1737235584439,0.00645817,104120.0,104110.0,0.86416805]
[1737235584950,0.00645817,104120.0,104110.0,0.60703818]
[1737235588597,0.00645817,104120.0,104110.0,0.39320147]
[1737235589690,0.00645817,104120.0,104110.0,0.39620621]
[1737235591010,0.00645817,104120.0,104110.0,0.61004292]
[1737235595665,0.00645817,104120.0,104110.0,0.86717279]
[1737235596458,0.00645817,104120.0,104110.0,0.65333608]
[1737235600035,0.00645817,104120.0,104110.0,1.0330044]
[1737235600444,0.00645817,104120.0,104110.0,0.77587453]
[1737235600588,0.3384834,104120.0,104110.0,0.38848372]
[1737235600796,0.58652361,104120.0,104110.0,0.38678313]
[1737235601179,0.4872828,104120.0,104110.0,0.22121719]
[1737235601989,0.4872828,104120.0,104110.0,0.21821245]
[1737235602391,0.38080117,104120.0,104110.0,0.00411007]
[1737235602712,0.38080117,104120.0,104110.0,0.21821245]
[1737235603340,0.38984544,104120.0,104110.0,0.21821245]
[1737235604185,0.38984544,104120.0,104110.0,0.4751353]
[1737235604382,0.38984544,104120.0,104110.0,0.21821245]
[1737235604961,0.38984544,104120.0,104110.0,0.4751353]
[1737235606258,0.38984544,104120.0,104110.0,0.21821245]
[1737235606936,0.38984544,104120.0,104110.0,0.26103292]
[1737235607165,0.38984544,104120.0,104110.0,0.36009]
[1737235607317,0.38080117,104120.0,104110.0,0.36009]
[1737235607516,0.22524117,104120.0,104110.0,0.36009]
[1737235607688,0.13475817,104120.0,104110.0,0.45933081]
[1737235607888,0.23080117,104120.0,104110.0,0.45933081]
[1737235608130,0.08955817,104120.0,104110.0,0.45933081]
[1737235608306,0.08399817,104120.0,104110.0,0.45933081]
[1737235608514,0.08955817,104120.0,104110.0,0.45933081]
[1737235608932,0.08955817,104120.0,104110.0,0.83899913]
[1737235610898,0.08955817,104120.0,104110.0,0.45933081]
[1737235615460,0.08955817,104120.0,104110.0,0.20240796]
[1737235615582,0.08955817,104120.0,104110.0,0.2028933]
[1737235616551,0.00645817,104120.0,104110.0,0.2028933]
[1737235616698,0.00645817,104120.0,104110.0,0.20231411]
[1737235619360,0.00645817,104120.0,104110.0,0.41750691]
[1737235619561,0.00645817,104120.0,104110.0,0.41702157]
[1737235620282,0.00645817,104120.0,104110.0,0.42002639]
[1737235620604,0.00645817,104120.0,104110.0,0.67825775]
[1737235622955,0.00645817,104120.0,104110.0,0.46306495]
[1737235624542,0.00645817,104120.0,104110.0,0.48606495]
[1737235624925,0.00089817,104120.0,104110.0,0.97384132]
[1737235625129,0.00645817,104120.0,104110.0,0.97384132]
[1737235625292,0.00645817,104120.0,104110.0,0.71560996]
[1737235627267,0.00645817,104120.0,104110.0,0.72499355]
[1737235628159,0.00645817,104120.0,104110.0,0.61851192]
[1737235629724,0.00645817,104120.0,104110.0,0.72499355]
[1737235629841,0.00645817,104120.0,104110.0,0.97499355]
[1737235630387,0.00089817,104120.0,104110.0,0.97499355]
[1737235634033,0.00089817,104120.0,104110.0,0.86851192]
[1737235640739,0.00089817,104120.0,104110.0,0.97499355]
[1737235642595,0.00089817,104120.0,104110.0,1.07499355]
[1737235642967,0.00089817,104120.0,104110.0,1.10499355]
[1737235643676,0.00089817,104120.0,104110.0,1.68350041]
[1737235644070,0.00089817,104120.0,104110.0,1.75930041]
[1737235644287,0.00089817,104120.0,104110.0,1.37800567]
[1737235648627,1.7e-07,104120.0,104110.0,1.42320567]
[1737235648836,5e-07,104130.0,104120.0,0.394843]
[1737235649086,9.5e-07,104130.0,104120.0,0.88695393]
[1737235649270,9.5e-07,104130.0,104120.0,0.8940098]
[1737235649480,9.5e-07,104130.0,104120.0,1.78252008]
[1737235650260,9.5e-07,104130.0,104120.0,1.4920098]
[1737235650640,0.00089881,104140.0,104130.0,0.2]
[1737235650787,0.00089881,104140.0,104130.0,0.8913281]
[1737235650990,0.00089881,104140.0,104130.0,0.89084393]
[1737235652104,0.00089881,104140.0,104130.0,0.89459719]
[1737235652620,0.00089881,104140.0,104130.0,0.89786757]
[1737235653390,8.1e-07,104140.0,104130.0,0.89786757]
[1737235655891,8.1e-07,104140.0,104130.0,0.68177908]
[1737235656067,8.1e-07,104140.0,104130.0,1.13965493]
[1737235656268,8.1e-07,104140.0,104130.0,1.61981485]
[1737235656511,8.1e-07,104140.0,104130.0,1.51981485]
[1737235656692,8.1e-07,104140.0,104130.0,1.61981485]
[1737235662537,8.1e-07,104140.0,104130.0,1.51333322]
[1737235662877,8.1e-07,104140.0,104130.0,1.41333322]
[1737235663209,0.12980081,104140.0,104130.0,1.01757524]
[1737235663423,0.13536081,104140.0,104130.0,1.01757524]
[1737235663538,0.13536081,104140.0,104130.0,1.00829939]
[1737235663737,0.13536081,104140.0,104130.0,0.96546657]
[1737235664113,0.13536081,104140.0,104130.0,0.77389745]
[1737235667542,0.13536081,104140.0,104130.0,0.20229745]
[1737235669544,0.13536081,104140.0,104130.0,0.20278239]
[1737235673295,0.13536081,104140.0,104130.0,0.41735151]
[1737235673497,0.13536081,104140.0,104130.0,0.41686657]
[1737235675633,0.13536081,104140.0,104130.0,0.41987063]
[1737235678917,0.13536081,104140.0,104130.0,0.42029803]
[1737235685164,0.13536081,104140.0,104130.0,0.32426503]
[1737235685290,0.33786644,104140.0,104130.0,0.22502422]
[1737235685496,0.23138481,104140.0,104130.0,0.22502422]
[1737235685918,0.23138481,104140.0,104130.0,0.32105722]
[1737235686140,0.23138481,104140.0,104130.0,0.31805316]
[1737235686988,0.13536081,104140.0,104130.0,0.31805316]
[1737235687187,0.23138481,104140.0,104130.0,0.31805316]
[1737235687588,0.12980081,104140.0,104130.0,0.41729397]
[1737235687786,0.13536081,104140.0,104130.0,0.41729397]
[1737235688735,0.13536081,104140.0,104130.0,0.42029815]
[1737235692159,0.33906678,104140.0,104130.0,0.22502434]
[1737235692320,0.33786644,104140.0,104130.0,0.01045522]
[1737235693548,0.48786644,104140.0,104130.0,0.01045522]
[1737235694731,0.48786644,104140.0,104130.0,0.00745104]
[1737235702487,0.49746282,104140.0,104130.0,0.00745104]
[1737235706145,0.49746282,104140.0,104130.0,0.10348404]
[1737235706146,0.12980081,104140.0,104130.0,0.10348404]
[1737235706344,0.12980081,104140.0,104130.0,0.20272485]
[1737235706534,0.08726081,104140.0,104130.0,0.20272485]
[1737235707032,0.08726081,104140.0,104130.0,0.41729397]
[1737235709312,0.08726081,104140.0,104130.0,0.42029818]
[1737235709721,0.08726081,104140.0,104130.0,0.67770012]
[1737235710933,0.08726081,104140.0,104130.0,0.42029818]
[1737235711330,0.08726081,104140.0,104130.0,0.41729397]
[1737235713487,0.08726081,104140.0,104130.0,0.4202982]
[1737235713692,0.08726081,104140.0,104130.0,0.67770014]
[1737235714356,0.08726081,104140.0,104130.0,0.46313102]
[1737235716690,0.08726081,104140.0,104130.0,0.67839262]
[1737235717317,0.08726081,104140.0,104130.0,0.46313102]
[1737235717927,0.08726081,104140.0,104130.0,0.678396]
[1737235718262,0.08726081,104140.0,104130.0,0.701396]
[1737235718263,8.1e-07,104140.0,104130.0,0.701396]
[1737235718465,0.00556081,104140.0,104130.0,0.701396]
[1737235718800,0.00556081,104140.0,104130.0,0.86629094]
[1737235719005,0.00556081,104140.0,104130.0,1.18999094]
[1737235721617,0.00556081,104140.0,104130.0,0.932589]
[1737235724573,0.00556081,104140.0,104130.0,1.19077802]
[1737235725421,0.00556081,104140.0,104130.0,0.8106181]
[1737235725560,0.00556081,104140.0,104130.0,0.81983806]
[1737235735213,0.00556081,104140.0,104130.0,0.88962052]
[1737235738886,0.00556081,104140.0,104130.0,0.88661629]
[1737235739087,0.00556081,104140.0,104130.0,1.26677621]
[1737235739452,0.00556081,104140.0,104130.0,1.19699375]
[1737235740829,0.00556081,104140.0,104130.0,0.81683383]
[1737235741327,0.00556081,104140.0,104130.0,1.19699375]
[1737235741818,0.00556081,104140.0,104130.0,1.18777379]
[1737235742036,0.12926081,104140.0,104130.0,1.16477379]
[1737235742565,0.12926081,104140.0,104130.0,1.16777792]
[1737235742773,0.12926081,104140.0,104130.0,0.787618]
[1737235746475,0.12926081,104140.0,104130.0,1.16777792]
[1737235746960,0.12926081,104140.0,104130.0,0.9095889]
[1737235760207,0.12926081,104140.0,104130.0,0.9325889]
[1737235761136,0.29506727,104140.0,104130.0,0.81034809]
[1737235761268,0.19904327,104140.0,104130.0,0.81034809]
[1737235761476,0.19904327,104140.0,104130.0,1.06884571]
[1737235761682,0.19904327,104140.0,104130.0,1.09184571]
[1737235761995,0.12926081,104140.0,104130.0,1.09184571]
[1737235762263,0.12926081,104140.0,104130.0,0.71168579]
[1737235766875,0.12926081,104140.0,104130.0,0.38798579]
[1737235769011,0.12926081,104140.0,104130.0,0.4872266]
[1737235776971,0.12926081,104140.0,104130.0,0.86738652]
[1737235777152,0.12926081,104140.0,104130.0,0.6088889]
[1737235789386,0.12926081,104140.0,104130.0,0.63760392]
[1737235793618,0.12370081,104140.0,104130.0,0.63760392]
[1737235793832,0.12926081,104140.0,104130.0,0.63760392]
[1737235794871,0.12370081,104140.0,104130.0,0.63760392]
[1737235795004,0.12926081,104140.0,104130.0,0.63760392]
[1737235796586,0.12370081,104140.0,104130.0,0.63760392]
[1737235796760,0.12926081,104140.0,104130.0,0.63760392]
[1737235803512,0.29506727,104140.0,104130.0,0.54157092]
[1737235803649,0.29506727,104140.0,104130.0,0.63760392]
[1737235804056,0.29506727,104140.0,104130.0,0.51600718]
[1737235804699,0.29506727,104140.0,104130.0,0.41997418]
[1737235804899,0.36484973,104140.0,104130.0,0.32073337]
[1737235805103,0.36484973,104140.0,104130.0,0.29773337]
[1737235805601,0.51484973,104140.0,104130.0,0.25475865]
[1737235806490,0.51484973,104140.0,104130.0,0.01045517]
[1737235806709,0.61484973,104140.0,104130.0,0.00745104]
[1737235806912,1.13583135,104140.0,104130.0,0.00745104]
[1737235808114,1.20561381,104140.0,104130.0,0.00745104]
[1737235808546,0.46339792,104130.0,104120.0,0.0004275]
[1737235808772,0.56263873,104130.0,104120.0,0.0004275]
[1737235810526,0.1252,104110.0,104090.0,0.47895972]
[1737235810709,0.36638592,104100.0,104090.0,0.24354699]
[1737235810909,0.27032492,104100.0,104090.0,0.36649463]
[1737235811827,0.27032492,104100.0,104090.0,0.15090617]
[1737235812226,0.27032492,104100.0,104090.0,0.12222589]
[1737235812429,0.27032492,104100.0,104090.0,0.11922045]
[1737235813195,0.20054246,104100.0,104090.0,0.11922045]
[1737235815556,0.31919677,104100.0,104090.0,0.00015045]
[1737235815730,0.36638592,104100.0,104090.0,0.00015045]
[1737235816227,0.51638592,104100.0,104090.0,0.00015045]
[1737235816627,0.61638592,104100.0,104090.0,0.00015045]
[1737235817595,0.62604805,104100.0,104090.0,0.00015045]
[1737235818308,0.29042213,104100.0,104090.0,0.11922045]
[1737235818512,0.21020459,104100.0,104090.0,0.11922045]
[1737235818706,0.13076,104100.0,104090.0,0.11922045]
[1737235818923,0.13076,104100.0,104090.0,0.11964825]
[1737235819533,0.1252,104100.0,104090.0,0.11964825]
[1737235819727,0.13076,104100.0,104090.0,0.11964825]
[1737235820617,0.1252,104100.0,104090.0,0.11964825]
[1737235820972,0.13076,104100.0,104090.0,0.11964825]
[1737235821170,0.1252,104100.0,104090.0,0.11964825]
[1737235821535,0.13076,104100.0,104090.0,0.11964825]
[1737235822521,0.1252,104100.0,104090.0,0.11964825]
[1737235822795,0.13076,104100.0,104090.0,0.11964825]
[1737235825785,0.1252,104100.0,104090.0,0.21888906]
[1737235825934,0.13076,104100.0,104090.0,0.21888906]
[1737235829459,0.13076,104100.0,104090.0,0.24748236]
[1737235831059,0.13076,104100.0,104090.0,0.25048775]
[1737235835414,0.13076,104100.0,104090.0,0.25529622]
[1737235843659,0.13076,104100.0,104090.0,0.47088468]
[1737235844040,0.13076,104100.0,104090.0,0.44788468]
[1737235846072,0.1269,104110.0,104100.0,0.096061]
[1737235846333,0.13246,104110.0,104100.0,0.096061]
[1737235846556,0.13246,104110.0,104100.0,0.1246543]
[1737235847083,0.13246,104110.0,104100.0,0.12765969]
[1737235847731,0.1269,104110.0,104100.0,0.34324815]
[1737235847927,0.228512,104110.0,104100.0,0.34324815]
[1737235848237,0.13246,104110.0,104100.0,0.3480563]
[1737235851120,0.13246,104110.0,104100.0,0.13246784]
[1737235851256,0.13246,104110.0,104100.0,0.39103102]
[1737235851976,0.2983636,104110.0,104100.0,0.39103102]
[1737235852188,0.2983636,104110.0,104100.0,0.29497002]
[1737235852597,0.2983636,104110.0,104100.0,0.34790611]
[1737235853738,0.2983636,104110.0,104100.0,0.34309796]
[1737235853882,0.2983636,104110.0,104100.0,0.34352586]
[1737235855330,0.2983636,104110.0,104100.0,0.60208904]
[1737235856153,0.2983636,104110.0,104100.0,0.34352586]
[1737235857158,0.2983636,104110.0,104100.0,0.60208904]
[1737235857544,0.2983636,104110.0,104100.0,0.6068974]
[1737235857755,0.2983636,104110.0,104100.0,0.34833422]
[1737235858807,0.2983636,104110.0,104100.0,0.6068974]
[1737235859191,0.228512,104110.0,104100.0,0.6068974]
[1737235859520,0.13246,104110.0,104100.0,0.34833422]
[1737235859723,0.07699859,104120.0,104110.0,0.096052]
[1737235860029,0.08255859,104120.0,104110.0,0.096052]
[1737235860364,0.08255859,104120.0,104110.0,0.35461518]
[1737235860962,0.00645859,104120.0,104110.0,0.62200759]
[1737235861164,0.00645859,104120.0,104110.0,0.65060089]
[1737235861369,0.00645859,104120.0,104110.0,0.80994795]
[1737235861370,0.00089859,104120.0,104110.0,0.80994795]
[1737235861580,0.00645859,104120.0,104110.0,0.86291668]
[1737235862205,0.00645859,104120.0,104110.0,0.85810835]
[1737235863675,0.00645859,104120.0,104110.0,0.47794843]
[1737235863875,0.00645859,104120.0,104110.0,0.32519131]
[1737235864222,0.00645859,104120.0,104110.0,0.63091609]
[1737235864425,0.00645859,104120.0,104110.0,0.60791609]
[1737235864843,0.15120214,104120.0,104110.0,0.60791609]
[1737235864973,0.22730214,104120.0,104110.0,0.48498324]
[1737235865184,0.22610159,104120.0,104110.0,0.48498324]
[1737235865413,0.13005859,104120.0,104110.0,0.48498324]
[1737235866372,0.13005859,104120.0,104110.0,0.44200583]
[1737235866936,0.22610159,104120.0,104110.0,0.44200583]
[1737235867502,0.13005859,104120.0,104110.0,0.44200583]
[1737235867952,0.13005859,104120.0,104110.0,0.44243363]
[1737235870215,0.00645859,104120.0,104110.0,0.46543363]
[1737235870422,0.00645859,104120.0,104110.0,0.72352556]
[1737235870909,0.00641859,104120.0,104110.0,0.48541104]
[1737235871929,0.13641859,104120.0,104110.0,0.48541104]
[1737235872562,0.13641859,104120.0,104110.0,0.44233407]
[1737235884584,0.13641859,104120.0,104110.0,0.700426]
[1737235885697,0.13641859,104120.0,104110.0,0.70481813]
[1737235885898,0.13641859,104120.0,104110.0,0.4467262]
[1737235886212,0.15583292,104120.0,104110.0,0.4467262]
[1737235886763,0.15583292,104120.0,104110.0,0.70481813]
[1737235887652,0.15583292,104120.0,104110.0,0.45618679]
[1737235887978,0.15583292,104120.0,104110.0,0.4467262]
[1737235888366,0.44224303,104120.0,104110.0,0.25143339]
[1737235888578,0.44104243,104120.0,104110.0,0.25624089]
[1737235888778,0.35823304,104120.0,104110.0,0.25624089]
[1737235889975,0.35823304,104120.0,104110.0,0.04122593]
[1737235890150,0.35823304,104120.0,104110.0,0.03341323]
[1737235890621,0.35823304,104120.0,104110.0,0.00481993]
[1737235895256,0.51762547,104120.0,104110.0,0.00481993]
[1737235898733,0.71610709,104120.0,104110.0,0.00481993]
[1737235899076,0.71686628,104120.0,104110.0,0.00481993]
[1737235902435,0.51762547,104120.0,104110.0,0.00481993]
[1737235903341,0.49821114,104120.0,104110.0,0.00481993]
[1737235908130,0.22694159,104120.0,104110.0,0.00481993]
[1737235908300,0.23246159,104120.0,104110.0,0.00481993]
[1737235909060,0.23246159,104120.0,104100.0,0.35375338]
[1737235909263,0.42455759,104120.0,104100.0,0.288171]
[1737235909670,0.61665159,104120.0,104100.0,0.29117594]